bitfinex-derivatives/quotes_ETHF0:USTF0_20241007
["timestamp","ask_amount","ask_price","bid_price","bid_amount"]
[1728290467059,3.14,2484.9,2484.5,0.8479]
[1728290467260,0.40248,2484.7,2484.6,0.40248]
[1728290467755,3.14,2484.9,2484.5,0.8479]
[1728290467959,0.40248,2484.8,2484.7,0.40248]
[1728290470958,3.14,2484.9,2484.5,0.8479]
[1728290471161,3.54245,2484.9,2484.8,0.40246]
[1728290471362,3.14,2484.9,2484.8,0.40246]
[1728290472753,7.13574,2485.0,2484.9,0.40245]
[1728290473060,6.7333,2485.0,2484.9,0.40245]
[1728290477559,3.5255,2485.0,2484.9,0.40245]
[1728290478468,1.8355,2485.0,2484.9,0.40245]
[1728290481373,1.8355,2485.0,2484.9,1.20985]
[1728290481673,0.40242,2485.1,2484.9,0.8074]
[1728290481674,1.45,2485.1,2484.9,0.8074]
[1728290481864,3.2078,2485.2,2485.1,0.40241]
[1728290482060,1.45,2485.5,2485.4,0.40236]
[1728290482263,0.4206,2485.6,2485.5,0.40235]
[1728290482567,3.2078,2485.7,2485.6,0.81313]
[1728290482773,3.2078,2485.7,2485.6,0.4108]
[1728290482774,5.06012,2485.7,2485.6,0.4108]
[1728290483168,0.40234,2485.6,2485.3,0.8173]
[1728290483362,1.45,2485.5,2485.4,0.40235]
[1728290484478,0.40234,2485.6,2485.4,0.40235]
[1728290484771,0.396,2485.5,2485.4,0.40235]
[1728290485377,3.2078,2485.7,2485.3,1.2093]
[1728290485670,44.828,2487.1,2485.3,1.2093]
[1728290485671,3.2078,2486.1,2485.6,3.2078]
[1728290485874,0.40226,2486.1,2486.0,0.40227]
[1728290486576,0.40225,2486.2,2486.0,0.40227]
[1728290487470,0.40225,2486.1,2486.0,0.40227]
[1728290487975,0.40225,2486.2,2486.0,0.40227]
[1728290488370,0.40225,2486.1,2486.0,0.40227]
[1728290491076,3.2078,2486.3,2486.2,0.40224]
[1728290494174,3.61002,2486.3,2486.2,0.40224]
[1728290494373,3.2078,2486.3,2485.8,0.823]
[1728290494571,0.40224,2486.2,2486.0,0.40226]
[1728290495376,0.40224,2486.2,2485.8,0.823]
[1728290495679,0.40224,2486.2,2486.1,0.40225]
[1728290495977,3.6052,2486.3,2485.8,0.823]
[1728290496172,0.40225,2486.2,2486.1,0.40225]
[1728290498677,0.396,2486.4,2485.8,8.17652]
[1728290498981,0.396,2486.4,2486.3,0.40222]
[1728290501475,3.536,2486.4,2486.3,0.40222]
[1728290501785,0.40223,2486.3,2486.1,0.40224]
[1728290501983,0.40223,2486.3,2486.0,0.40226]
[1728290501984,0.40226,2486.1,2486.0,0.40226]
[1728290502177,3.5287,2486.2,2485.6,0.19887564]
[1728290502486,0.40229,2485.9,2485.6,0.8209]
[1728290502781,3.14,2485.8,2485.7,0.4023]
[1728290502981,3.5423,2485.8,2485.7,0.4023]
[1728290503177,3.14,2485.8,2485.7,0.4023]
[1728290504879,3.5423,2485.8,2485.7,0.4023]
[1728290505975,3.14,2485.8,2485.7,0.4023]
[1728290509775,0.4023,2485.9,2485.6,0.8209]
[1728290510084,0.4023,2485.9,2485.8,0.4023]
[1728290510278,6.7693,2486.0,2485.6,0.8209]
[1728290510585,3.14,2485.8,2485.7,0.4023]
[1728290514486,3.6293,2486.0,2485.9,0.40228]
[1728290515090,0.4215,2486.0,2485.9,0.40228]
[1728290515286,0.82377,2486.0,2485.9,0.40228]
[1728290515493,0.4215,2486.0,2485.9,0.40228]
[1728290515686,0.82377,2486.0,2485.9,0.40228]
[1728290515993,0.4215,2486.0,2485.9,0.40228]
[1728290516604,0.40229,2485.9,2485.6,0.8209]
[1728290517498,3.6293,2486.0,2485.9,0.40228]
[1728290517792,3.2078,2486.2,2485.9,1.00571]
[1728290517988,3.2078,2486.2,2486.0,0.7909]
[1728290518182,0.80003,2486.3,2486.0,0.7909]
[1728290518386,0.80003,2486.3,2486.2,0.40224]
[1728290519595,0.40224,2486.2,2486.1,0.40224]
[1728290520092,0.80003,2486.3,2486.2,0.40224]
[1728290520293,4.82243,2486.3,2486.2,0.40224]
[1728290520690,4.4202,2486.3,2486.0,1.1749]
[1728290520894,0.40224,2486.2,2486.1,0.40225]
[1728290521485,0.40225,2486.1,2485.9,0.40227]
[1728290521685,0.4023,2485.8,2485.7,1.2128]
[1728290521989,3.5423,2485.8,2485.7,0.8181]
[1728290522693,3.5423,2485.8,2485.7,1.22042]
[1728290522893,3.14,2485.8,2485.7,1.22042]
[1728290527283,3.602,2485.9,2485.8,0.4023]
[1728290527689,3.602,2485.9,2485.8,0.8123]
[1728290527891,4.00428,2485.9,2485.8,0.8123]
[1728290528699,3.602,2485.9,2485.8,0.8123]
[1728290532597,0.3942,2485.9,2485.8,0.8123]
[1728290533397,0.79648,2485.9,2485.8,0.8123]
[1728290533902,0.79648,2485.9,2485.8,0.4023]
[1728290534501,1.8442,2485.9,2485.7,1.22041]
[1728290534694,5.052,2485.9,2485.7,1.22041]
[1728290534897,0.4023,2485.8,2485.7,1.22041]
[1728290535094,5.052,2485.9,2485.5,0.40234]
[1728290535095,6.05774,2485.9,2485.5,0.40234]
[1728290535298,3.2078,2485.6,2485.3,1.2294]
[1728290535500,1.85236,2485.4,2485.3,1.2294]
[1728290535808,1.85236,2485.4,2485.3,0.8179]
[1728290536196,1.85238,2485.4,2485.2,0.40239]
[1728290536507,1.85238,2485.4,2485.1,0.4115]
[1728290536508,3.54239,2485.3,2485.1,1.6571]
[1728290537704,3.14,2485.3,2485.2,0.4024]
[1728290539101,3.14,2485.4,2485.3,0.40237]
[1728290539909,0.80155,2485.5,2485.4,0.40236]
[1728290540205,0.80155,2485.5,2485.1,1.2547]
[1728290540406,0.80156,2485.5,2485.3,0.40237]
[1728290540607,0.40236,2485.4,2485.3,0.40237]
[1728290544214,0.40236,2485.4,2485.2,0.40239]
[1728290544507,0.40238,2485.3,2485.2,0.40239]
[1728290547315,0.40238,2485.3,2485.1,1.65711]
[1728290547316,0.4024,2485.2,2485.1,1.65711]
[1728290547713,0.4024,2485.2,2485.1,1.2547]
[1728290548006,3.6102,2485.2,2485.1,1.2547]
[1728290549508,3.6102,2485.2,2485.1,0.4195]
[1728290550004,3.6102,2485.2,2485.1,0.82191]
[1728290550208,3.6102,2485.2,2485.1,0.4195]
[1728290551112,0.4024,2485.2,2485.1,0.4195]
[1728290551607,0.4024,2485.2,2485.1,0.82191]
[1728290551806,0.4024,2485.2,2485.1,0.40241]
[1728290554017,6.75019,2485.3,2485.2,0.4024]
[1728290554204,6.3478,2485.3,2485.2,0.4024]
[1728290555313,6.75018,2485.3,2485.2,0.4024]
[1728290556011,6.3478,2485.3,2485.2,0.4024]
[1728290556913,6.75018,2485.3,2485.2,0.4024]
[1728290557912,6.3478,2485.3,2485.2,0.4024]
[1728290558509,4.6578,2485.3,2485.2,0.4024]
[1728290560017,3.2078,2485.3,2485.2,0.4024]
[1728290560212,4.6578,2485.3,2485.2,0.4024]
[1728290564624,5.06018,2485.3,2485.2,0.4024]
[1728290565828,3.61018,2485.3,2485.2,0.4024]
[1728290566030,5.06018,2485.3,2485.2,0.4024]
[1728290567527,3.2078,2485.3,2485.2,0.4024]
[1728290568026,1.00581,2485.7,2485.6,0.40233]
[1728290568027,0.4045,2485.7,2485.6,0.40233]
[1728290568229,1.45,2485.9,2485.4,1.45]
[1728290568532,1.85233,2485.7,2485.6,0.40233]
[1728290568728,1.45,2485.7,2485.6,0.40233]
[1728290569028,1.85232,2485.7,2485.6,0.40233]
[1728290570132,1.45,2485.7,2485.6,0.40233]
[1728290570332,1.85232,2485.7,2485.6,0.40233]
[1728290570729,1.45,2485.7,2485.6,0.40233]
[1728290571932,3.61009,2485.9,2485.4,1.4108]
[1728290572235,3.61009,2485.9,2485.8,0.4023]
[1728290572437,4.6578,2485.9,2485.4,1.4108]
[1728290572638,0.40231,2485.8,2485.7,0.40231]
[1728290574438,0.40233,2485.7,2485.6,0.40233]
[1728290574738,1.85233,2485.7,2485.6,0.40233]
[1728290576638,1.85233,2485.7,2485.4,0.4049]
[1728290576639,0.40231,2485.8,2485.7,0.40231]
[1728290576933,1.45,2485.8,2485.7,0.40231]
[1728290577241,1.8523,2485.8,2485.7,0.40231]
[1728290578927,0.40232,2485.7,2485.6,0.40232]
[1728290587430,1.0058,2485.7,2485.4,0.4049]
[1728290587635,1.85235,2485.5,2485.4,0.80725]
[1728290588533,1.45,2485.5,2485.4,0.80725]
[1728290588932,2.27543,2485.6,2485.5,0.40235]
[1728290591636,1.8731,2485.6,2485.4,0.4049]
[1728290591843,1.85235,2485.5,2485.4,0.80726]
[1728290592544,1.45,2485.5,2485.1,1.04422441]
[1728290592739,1.8524,2485.2,2485.1,0.4024]
[1728290592945,1.85241,2485.2,2485.1,0.40241]
[1728290593335,1.45,2485.2,2485.1,0.40241]
[1728290593844,1.8524,2485.2,2485.1,0.40241]
[1728290594931,1.45,2485.2,2485.1,0.40241]
[1728290595137,1.45,2485.3,2485.2,0.4024]
[1728290599949,1.85238,2485.3,2485.2,0.4024]
[1728290600139,2.26358,2485.3,2485.2,0.4024]
[1728290600642,1.8612,2485.3,2485.2,0.4024]
[1728290601640,2.26358,2485.3,2485.2,0.4024]
[1728290601843,1.8612,2485.3,2485.2,0.4024]
[1728290602749,2.26358,2485.3,2485.2,0.4024]
[1728290603249,1.8612,2485.3,2485.2,0.4024]
[1728290607241,0.4112,2485.3,2485.2,0.4024]
[1728290607441,1.45,2485.4,2485.3,0.40238]
[1728290608552,1.85236,2485.4,2485.3,0.40238]
[1728290609448,1.45,2485.4,2485.3,0.40238]
[1728290611345,1.85236,2485.4,2485.3,0.40238]
[1728290620846,1.45,2485.4,2485.0,4.4643]
[1728290621049,1.85238,2485.4,2485.3,0.40238]
[1728290628164,0.40239,2485.3,2485.2,0.40238]
[1728290628361,0.4024,2485.2,2485.1,1.04422441]
[1728290628659,0.4024,2485.2,2485.0,0.8369]
[1728290628660,0.40241,2485.1,2485.0,0.8369]
[1728290628861,1.85241,2485.1,2485.0,0.8369]
[1728290629663,1.85241,2485.1,2485.0,1.23933]
[1728290633665,1.85241,2485.1,2485.0,0.8369]
[1728290633866,1.85241,2485.1,2485.0,1.23933]
[1728290635468,1.85241,2485.1,2485.0,0.8369]
[1728290636867,1.85241,2485.1,2485.0,1.23933]
[1728290637166,1.85241,2485.1,2485.0,0.8369]
[1728290640565,0.40241,2485.1,2485.0,1.23933]
[1728290640776,1.85241,2485.1,2485.0,1.23933]
[1728290643074,3.2078,2485.3,2485.0,4.8609]
[1728290643275,1.85239,2485.3,2485.2,0.40239]
[1728290645671,1.85239,2485.3,2485.2,1.44661441]
[1728290649278,1.85239,2485.3,2485.2,1.04422441]
[1728290650174,1.85239,2485.3,2485.2,1.44662441]
[1728290651780,1.85239,2485.3,2485.2,0.4024]
[1728290665087,1.45,2485.3,2485.2,0.4024]
[1728290665288,1.85238,2485.3,2485.2,1.45480538]
[1728290666991,1.85238,2485.3,2485.2,0.4024]
[1728290669587,1.45,2485.3,2485.2,0.4024]
[1728290669892,1.45,2485.7,2485.2,15.29019538]
[1728290670092,2.25313,2485.7,2485.6,0.40232]
[1728290671680,0.4008,2485.7,2485.6,0.40232]
[1728290671885,2.25312,2485.7,2485.6,0.40232]
[1728290673286,2.25316,2485.7,2485.6,0.40232]
[1728290683699,5.46096,2485.7,2485.6,0.40232]
[1728290686000,2.25316,2485.7,2485.6,0.40232]
[1728290686200,5.46096,2485.7,2485.6,0.40232]
[1728290686707,2.25316,2485.7,2485.6,0.40232]
[1728290687005,5.46096,2485.7,2485.6,0.40232]
[1728290687406,2.25316,2485.7,2485.6,0.40232]
[1728290687602,5.46096,2485.7,2485.6,0.40232]
[1728290688005,2.25316,2485.7,2485.6,0.40232]
[1728290688206,5.46096,2485.7,2485.6,0.40232]
[1728290689107,2.25316,2485.7,2485.6,0.40232]
[1728290689410,5.46096,2485.7,2485.6,0.40232]
[1728290696913,5.0586,2485.7,2485.2,1.05240538]
[1728290697214,1.45,2485.3,2485.1,1.83550538]
[1728290697407,0.40247,2485.0,2484.9,1.05240538]
[1728290697609,0.40247,2485.0,2484.9,0.40249]
[1728290697914,4.6578,2485.1,2485.0,0.40247]
[1728290697915,3.2078,2485.1,2485.0,0.40247]
[1728290698118,5.06025,2485.1,2485.0,0.40247]
[1728290699112,5.06027,2485.1,2485.0,0.40247]
[1728290699310,0.40248,2485.0,2484.9,0.40248]
[1728290700304,4.6578,2485.1,2484.8,0.7831]
[1728290700305,0.40249,2484.9,2484.8,0.7831]
[1728290700508,0.40249,2484.9,2484.5,6.31986892]
[1728290700509,0.40253,2484.7,2484.5,6.31986892]
[1728290700811,0.40253,2484.7,2484.3,1.05240538]
[1728290700812,1.8426,2484.6,2484.3,1.05240538]
[1728290701112,4.6578,2484.4,2484.1,1.45500538]
[1728290701305,4.6578,2484.4,2484.1,0.4026]
[1728290701306,1.45,2484.2,2484.1,0.4026]
[1728290701918,1.8426,2484.2,2484.1,0.4026]
[1728290704007,0.40262,2484.1,2483.9,0.82533]
[1728290704213,0.40262,2484.1,2483.7,0.82077]
[1728290704214,0.40265,2483.9,2483.7,0.82077]
[1728290704518,3.2078,2484.1,2483.7,0.82077]
[1728290704519,1.45,2483.8,2483.7,0.82077]
[1728290706416,3.2078,2484.1,2484.0,0.40263]
[1728290706621,1.45,2484.1,2484.0,0.40262]
[1728290707316,1.8426,2484.2,2483.7,1.8681]
[1728290707521,1.8426,2484.2,2484.1,0.40262]
[1728290707918,4.6578,2484.4,2484.0,1.45]
[1728290708115,4.6578,2484.4,2484.3,0.40258]
[1728290712126,3.2078,2484.4,2484.3,0.40258]
[1728290712326,24.1403,2486.5,2484.1,2.2917]
[1728290712327,1.45,2484.6,2484.5,0.40255]
[1728290713028,1.45,2484.7,2484.6,0.40253]
[1728290716625,1.85252,2484.7,2484.6,0.40253]
[1728290716826,0.40256,2484.5,2484.4,0.40256]
[1728290717133,1.85256,2484.5,2484.4,0.40256]
[1728290717529,2.26956,2484.5,2484.4,0.40256]
[1728290718221,0.40257,2484.4,2484.3,0.40257]
[1728290718421,2.26956,2484.5,2484.4,0.40257]
[1728290719629,1.867,2484.5,2484.4,0.40257]
[1728290723228,0.417,2484.5,2484.4,0.40257]
[1728290723433,4.6578,2484.6,2484.2,1.45]
[1728290723633,3.2078,2484.6,2484.5,0.40255]
[1728290723835,0.4096,2484.8,2484.7,0.40252]
[1728290747845,4.6578,2485.0,2484.6,0.4231]
[1728290748048,4.6578,2485.0,2484.9,0.40249]
[1728290748846,3.2078,2485.0,2484.9,0.40249]
[1728290749244,3.2078,2485.0,2484.9,5.87649]
[1728290749943,3.2078,2485.0,2484.9,6.67439]
[1728290750936,3.2078,2485.0,2484.9,2.65039]
[1728290751153,0.4065,2485.3,2485.2,0.40244]
[1728290751542,3.6143,2485.3,2485.2,0.40244]
[1728290752650,5.46672,2485.3,2485.2,0.40244]
[1728290753542,5.0643,2485.3,2484.9,0.7979]
[1728290753747,0.40247,2485.1,2485.0,0.40246]
[1728290753946,1.85247,2485.1,2485.0,0.40246]
[1728290754254,1.45,2485.1,2484.9,0.4051]
[1728290754551,0.40247,2485.0,2484.9,0.80757]
[1728290755346,0.40249,2484.9,2484.8,0.4025]
[1728290755548,1.8748,2484.9,2484.7,0.4067]
[1728290755742,0.4025,2484.8,2484.7,0.8092]
[1728290756051,2.2773,2484.9,2484.8,0.4025]
[1728290759046,1.8748,2484.9,2484.8,0.4025]
[1728290759242,0.4248,2484.9,2484.8,0.4025]
[1728290769560,0.4248,2484.9,2484.8,0.8108]
[1728290770559,3.2078,2485.1,2485.0,0.40247]
[1728290770948,3.2078,2485.1,2485.0,1.45495836]
[1728290774660,0.4145,2485.2,2485.0,1.05248836]
[1728290774867,0.4145,2485.2,2485.1,0.81785]
[1728290775056,3.6223,2485.2,2485.1,1.20765]
[1728290776959,0.4145,2485.2,2485.1,1.20765]
[1728290777165,3.6223,2485.2,2485.1,1.20765]
[1728290780369,0.4145,2485.2,2485.1,1.20765]
[1728290780967,0.81694,2485.2,2485.1,1.20765]
[1728290784270,0.81694,2485.2,2485.1,0.81785]
[1728290786976,0.4145,2485.2,2485.1,0.81785]
[1728290795197,0.4145,2485.2,2485.1,0.40245]
[1728290796579,0.40246,2485.1,2485.0,0.40246]
[1728290796779,1.8656,2485.1,2484.7,1.05248836]
[1728290796990,5.0603,2484.8,2484.7,0.40251]
[1728290797283,4.6578,2484.8,2484.7,0.40251]
[1728290798183,5.0603,2484.8,2484.7,0.40251]
[1728290798877,5.06031,2484.8,2484.7,0.40252]
[1728290800084,3.2078,2484.8,2484.7,0.40252]
[1728290800273,3.2078,2484.8,2484.7,1.45500836]
[1728290801088,0.4262,2484.9,2484.7,1.05248836]
[1728290801291,0.4262,2484.9,2484.8,0.4025]
[1728290801781,0.4262,2484.9,2484.8,0.8017]
[1728290802789,0.4262,2484.9,2484.8,1.85418836]
[1728290802988,2.27869,2484.9,2484.8,1.05248836]
[1728290803290,0.40252,2484.7,2484.6,1.05248836]
[1728290803985,0.80842,2484.7,2484.6,1.05248836]
[1728290804184,4.01622,2484.7,2484.6,1.05248836]
[1728290804591,0.40253,2484.6,2484.5,1.05248836]
[1728290804782,2.27523,2484.6,2484.5,2.80402967]
[1728290804986,2.27523,2484.6,2484.5,1.05248836]
[1728290805899,2.27523,2484.6,2484.5,1.45502836]
[1728290808194,2.27523,2484.6,2484.5,1.05248836]
[1728290808393,2.27523,2484.6,2484.5,1.45503836]
[1728290808585,2.27523,2484.6,2484.5,0.40255]
[1728290809083,0.40255,2484.5,2484.4,1.45504836]
[1728290809387,0.40255,2484.5,2484.4,2.80342136]
[1728290809595,0.40255,2484.5,2484.4,1.45505836]
[1728290809793,0.40255,2484.5,2484.4,0.40257]
[1728290809994,0.40255,2484.5,2484.4,1.45505836]
[1728290810594,0.40255,2484.5,2484.4,0.40257]
[1728290812089,1.8727,2484.6,2484.3,1.45506836]
[1728290812090,0.40257,2484.4,2484.3,1.45506836]
[1728290812392,0.40256,2484.5,2484.4,0.40256]
[1728290814196,0.40257,2484.5,2484.4,0.40257]
[1728290816490,3.2078,2484.7,2484.4,1.45]
[1728290816695,0.40254,2484.6,2484.5,0.40255]
[1728290818196,0.40254,2484.6,2484.5,0.80985]
[1728290818691,3.61034,2484.6,2484.5,0.80985]
[1728290820286,0.40254,2484.6,2484.5,0.80985]
[1728290820483,3.61034,2484.6,2484.5,0.80985]
[1728290822085,0.40254,2484.6,2484.5,0.80985]
[1728290822689,0.40255,2484.5,2484.4,1.45504836]
[1728290822994,0.79385,2484.5,2484.4,1.86754836]
[1728290823191,0.79385,2484.5,2484.4,1.46498836]
[1728290823387,4.00165,2484.5,2484.4,1.46498836]
[1728290823788,0.79385,2484.5,2484.4,1.86755836]
[1728290824194,0.79385,2484.5,2484.4,1.46498836]
[1728290824696,0.79385,2484.5,2484.4,0.4125]
[1728290825398,0.79385,2484.5,2484.4,0.81507]
[1728290825694,0.40254,2484.6,2484.5,0.40254]
[1728290829101,1.85253,2484.7,2484.6,0.40253]
[1728290830092,1.45,2484.7,2484.4,0.4125]
[1728290830291,0.40254,2484.6,2484.5,0.40254]
[1728290830489,1.45,2484.7,2484.4,0.4125]
[1728290830791,0.40255,2484.5,2484.4,0.81506]
[1728290831786,0.40255,2484.6,2484.5,0.40254]
[1728290833496,0.40255,2484.6,2484.5,1.45502836]
[1728290836004,0.40255,2484.6,2484.5,0.40254]
[1728290836899,0.40255,2484.6,2484.5,1.45552299]
[1728290837095,0.40255,2484.6,2484.5,1.05298299]
[1728290837396,0.40255,2484.6,2484.5,1.45553299]
[1728290837595,3.61035,2484.6,2484.5,1.45553299]
[1728290838192,3.61035,2484.6,2484.5,1.05298299]
[1728290838601,5.06035,2484.6,2484.5,1.05298299]
[1728290838806,5.85885,2484.6,2484.5,1.05298299]
[1728290839000,0.40255,2484.5,2484.4,1.05298299]
[1728290839198,2.27115,2484.5,2484.4,2.80606446]
[1728290839505,2.27115,2484.5,2484.4,3.33255596]
[1728290839896,2.27115,2484.5,2484.4,1.75308147]
[1728290840096,2.27115,2484.5,2484.4,3.20950637]
[1728290840304,0.82115,2484.5,2484.4,3.73512596]
[1728290842308,0.82115,2484.5,2484.4,3.73731383]
[1728290845508,0.82115,2484.5,2484.4,2.15783934]
[1728290846904,0.82115,2484.5,2484.4,1.75526934]
[1728290847206,0.40257,2484.4,2484.3,2.10596599]
[1728290847505,4.42737,2484.4,2484.3,1.05620681]
[1728290847705,4.0256,2484.3,2484.0,1.58398247]
[1728290847903,0.40265,2483.9,2483.8,1.58398247]
[1728290848103,1.85265,2483.9,2483.8,1.75465847]
[1728290848404,1.85265,2483.9,2483.8,3.33864094]
[1728290848405,5.87905,2483.9,2483.8,3.33864094]
[1728290848706,5.87905,2483.9,2483.8,1.75465847]
[1728290848899,0.40266,2483.8,2483.7,1.58398247]
[1728290849095,3.61046,2483.8,2483.7,1.75388543]
[1728290850101,3.2078,2483.8,2483.6,2.39976247]
[1728290850310,1.85268,2483.7,2483.6,2.39976247]
[1728290850499,1.85268,2483.7,2483.6,4.15226365]
[1728290850809,1.85268,2483.7,2483.6,3.74958365]
[1728290851003,1.85268,2483.7,2483.6,4.15228365]
[1728290851198,1.85268,2483.7,2483.6,3.74958365]
[1728290852110,1.85268,2483.7,2483.6,2.16560118]
[1728290852307,1.85268,2483.7,2483.4,1.58398247]
[1728290852308,0.40271,2483.5,2483.4,1.58398247]
[1728290852607,0.40271,2483.5,2483.3,1.99048247]
[1728290852608,0.40273,2483.4,2483.3,1.99048247]
[1728290852803,0.40273,2483.4,2483.3,2.15812353]
[1728290853101,0.40273,2483.4,2483.3,0.4065]
[1728290853302,0.40275,2483.3,2483.1,2.00298247]
[1728290853505,1.85275,2483.3,2483.2,1.75082542]
[1728290854103,0.40276,2483.2,2483.1,0.82178]
[1728290854304,0.40276,2483.2,2483.0,0.7777]
[1728290854305,0.40278,2483.1,2483.0,0.7777]
[1728290854506,1.85278,2483.1,2483.0,0.7777]
[1728290854704,1.85278,2483.1,2483.0,0.3884]
[1728290855512,0.40279,2483.0,2482.9,0.4148]
[1728290856405,1.45,2483.1,2482.8,0.3884]
[1728290856406,0.40281,2482.9,2482.8,0.3884]
[1728290856607,4.6578,2482.9,2482.8,0.79123]
[1728290857002,4.6578,2482.9,2482.8,0.3884]
[1728290859011,4.6578,2482.9,2482.6,0.4126]
[1728290859221,1.45,2482.7,2482.6,0.81545]
[1728290859902,1.45,2482.7,2482.6,0.4126]
[1728290860107,1.45,2482.7,2482.6,0.81546]
[1728290860309,1.45,2482.7,2482.6,0.4126]
[1728290860910,1.45,2482.7,2482.6,0.81546]
[1728290861416,1.45,2482.8,2482.7,0.40284]
[1728290861618,1.45,2482.8,2482.7,0.79914]
[1728290863207,4.6578,2482.8,2482.7,0.79914]
[1728290864324,1.45,2482.8,2482.7,0.79914]
[1728290864510,4.6578,2482.8,2482.7,0.79914]
[1728290868145,5.06063,2482.8,2482.7,0.79914]
[1728290871441,3.2078,2482.8,2482.7,0.79914]
[1728290871742,2.60321173,2482.8,2482.7,0.79914]
[1728290873845,3.2078,2483.1,2483.0,0.40279]
[1728290877038,3.2078,2483.1,2483.0,0.81029]
[1728290882453,0.40266,2483.9,2483.5,0.40271]
[1728290882748,1.45,2483.6,2483.5,0.4027]
[1728290882945,0.40272,2483.5,2483.4,0.40272]
[1728290883140,1.85272,2483.5,2483.4,0.40272]
[1728290883553,1.45,2483.5,2483.4,0.40272]
[1728290889954,1.8516,2483.5,2483.4,0.40272]
[1728290891664,2.25431,2483.5,2483.4,0.40272]
[1728290892559,1.8516,2483.5,2483.4,0.40272]
[1728290895466,2.25431,2483.5,2483.4,0.40272]
[1728290895764,1.8516,2483.5,2483.4,0.40272]
[1728290895965,2.25431,2483.5,2483.4,0.40272]
[1728290897363,1.8516,2483.5,2483.4,0.40272]
[1728290900663,2.25431,2483.5,2483.4,0.40272]
[1728290903774,1.8516,2483.5,2483.0,3.6153]
[1728290904079,1.45,2483.1,2483.0,1.22989]
[1728290904974,0.4184,2483.2,2483.1,0.40278]
[1728290905277,0.40278,2483.1,2483.0,0.82239]
[1728290905469,1.45,2483.1,2482.5,1.45]
[1728290905670,1.85283,2482.8,2482.7,0.40284]
[1728290905876,1.45,2482.8,2482.7,0.40284]
[1728290906177,1.8684,2482.9,2482.8,0.40283]
[1728290906572,2.27121,2482.9,2482.8,0.40283]
[1728290906773,0.40283,2482.8,2482.7,0.40284]
[1728290906972,1.45,2482.8,2482.7,0.40284]
[1728290907577,1.8684,2482.9,2482.8,0.40283]
[1728290909879,0.40284,2482.8,2482.7,0.40284]
[1728290910079,1.8684,2482.9,2482.8,0.40283]
[1728290911181,2.27121,2482.9,2482.8,0.40283]
[1728290911378,1.8684,2482.9,2482.8,0.40283]
[1728290912081,2.27121,2482.9,2482.8,0.40283]
[1728290917184,0.40286,2482.6,2482.5,0.80126]
[1728290917384,1.85286,2482.6,2482.5,0.3984]
[1728290917779,2.66466,2482.6,2482.5,0.3984]
[1728290918982,0.40288,2482.5,2482.4,0.40288]
[1728290919674,2.2618,2482.6,2482.5,0.40288]
[1728290920283,2.66466,2482.6,2482.5,0.40288]
[1728290920782,0.40289,2482.4,2482.3,0.7957]
[1728290920985,1.85289,2482.4,2482.3,0.7957]
[1728290922278,5.06069,2482.4,2482.3,0.3928]
[1728290922476,0.40292,2482.2,2482.1,0.40294]
[1728290922677,1.45,2482.2,2482.0,1.03436261]
[1728290922887,0.40294,2482.1,2482.0,0.82334]
[1728290923081,0.4258,2482.1,2482.0,0.82334]
[1728290924183,1.85293,2482.2,2482.0,0.4204]
[1728290924386,0.40294,2482.1,2482.0,0.82335]
[1728290924783,1.45,2482.2,2482.0,0.4204]
[1728290924982,0.40294,2482.1,2482.0,0.82335]
[1728290925183,1.45,2482.2,2481.9,0.3941]
[1728290925480,1.41399,2482.3,2481.9,0.3941]
[1728290925682,0.81363,2482.2,2482.1,0.40294]
[1728290925986,2.26363,2482.2,2482.1,0.40294]
[1728290929586,1.8607,2482.2,2482.1,0.40294]
[1728290930084,2.26362,2482.2,2482.1,0.40294]
[1728290930678,1.8607,2482.2,2482.1,0.40294]
[1728290930881,2.26362,2482.2,2482.1,0.40294]
[1728290931191,1.8607,2482.2,2482.1,0.40294]
[1728290931487,2.26362,2482.2,2482.1,0.40294]
[1728290932081,1.8607,2482.2,2482.1,0.40294]
[1728290936790,0.4107,2482.2,2482.1,0.40294]
[1728290937588,1.45,2482.5,2482.1,5.4788]
[1728290937899,0.4213,2482.5,2482.4,0.40288]
[1728290938290,0.82418,2482.5,2482.4,0.40288]
[1728290938784,0.40286,2482.6,2482.5,0.40286]
[1728290939686,0.4213,2482.7,2482.6,0.40286]
[1728290939887,2.27414,2482.7,2482.6,0.40286]
[1728290940088,1.8713,2482.7,2482.6,0.40286]
[1728290940284,0.4213,2482.7,2482.6,0.40286]
[1728290940494,1.45,2483.0,2482.9,0.40281]
[1728290940697,4.51622869,2483.3,2483.1,0.40278]
[1728290940698,0.4,2483.2,2483.1,0.40278]
[1728290940992,1.85,2483.2,2483.1,0.40278]
[1728290941390,2.25276,2483.2,2483.1,0.40278]
[1728290941595,1.85,2483.2,2483.1,0.40278]
[1728290941900,0.4,2483.2,2483.1,0.40278]
[1728290943291,1.85,2483.2,2483.1,0.40278]
[1728290945896,2.25277,2483.2,2483.0,0.79159]
[1728290946094,1.45,2483.1,2483.0,0.79159]
[1728290946491,0.4,2483.2,2483.1,0.40278]
[1728290946691,1.85,2483.2,2483.1,0.40278]
[1728290947899,1.85,2483.2,2483.1,0.81668]
[1728290948098,1.85,2483.2,2483.1,1.20668]
[1728290952889,0.4,2483.2,2483.1,1.20668]
[1728290956593,0.4201,2483.5,2483.4,0.40273]
[1728290956799,0.8211,2483.5,2483.4,0.40273]